fUST/lending_fUST_20240603
["ID","MTS","AMOUNT","RATE_DAILY","PERIOD"]
[328455340,1717411857237,-2250.22,0.00024931,2]
[328455341,1717411857246,-927.62,0.00024931,2]
[328455342,1717411857256,-669.48,0.00024931,2]
[328455343,1717411857265,-550.56805613,0.00024931,2]
[328455344,1717411857274,-605.13,0.00024931,2]
[328455345,1717411857283,-160.0,0.00025,2]
[328455346,1717411857292,-33286.8331406,0.00025,30]
[328455347,1717411857301,-1326.90978748,0.00025,2]
[328455348,1717411857310,-87465.78498562,0.00025,2]
[328455349,1717411857320,-179.8,0.0002508,7]
[328455350,1717411857329,-151.0,0.0002508,7]
[328455351,1717411857339,-500.0,0.00025107,2]
[328455352,1717411857348,-1057.05,0.00025107,2]
[328455353,1717411857357,-1300.95,0.00025107,2]
[328455354,1717411857366,-501.5,0.00025107,2]
[328455355,1717411857375,-500.0,0.00025107,2]
[328455356,1717411857385,-514.29,0.00025107,2]
[328455357,1717411857394,-1456.38,0.00025107,2]
[328455358,1717411857404,-1362.24,0.00025107,2]
[328455359,1717411857413,-506.18,0.00025107,2]
[328455360,1717411857422,-889.13,0.00025111,2]
[328455361,1717411857432,-663.62,0.00025111,2]
[328455362,1717411857441,-505.95,0.00025111,2]
[328455363,1717411857450,-551.94,0.00025111,2]
[328455364,1717411857459,-500.0,0.00025111,2]
[328455365,1717411857469,-719.18,0.00025111,2]
[328455366,1717411857478,-1091.88,0.00025111,2]
[328455367,1717411857487,-3293.93,0.00025111,2]
[328455368,1717411857497,-500.0,0.00025111,2]
[328455369,1717411857506,-2227.33,0.00025111,2]
[328455370,1717411857515,-765.8,0.00025111,2]
[328455371,1717411857524,-537.67,0.00025111,2]
[328455372,1717411857534,-757.4,0.00025205,2]
[328455373,1717411857542,-2250.22,0.00025205,2]
[328455374,1717411857551,-927.62,0.00025205,2]
[328455375,1717411857560,-669.48,0.00025205,2]
[328455376,1717411857569,-605.13,0.00025205,2]
[328455377,1717411857578,-500.0,0.00025381,2]
[328455378,1717411857587,-1057.05,0.00025381,2]
[328455379,1717411857597,-1300.95,0.00025381,2]
[328455380,1717411857606,-501.5,0.00025381,2]
[328455381,1717411857616,-500.0,0.00025381,2]
[328455382,1717411857625,-514.29,0.00025381,2]
[328455383,1717411857635,-1456.38,0.00025381,2]
[328455384,1717411857645,-1362.24,0.00025381,2]
[328455385,1717411857654,-506.18,0.00025381,2]
[328455386,1717411857663,-889.13,0.00025385,2]
[328455387,1717411857673,-663.62,0.00025385,2]
[328455388,1717411857682,-505.95,0.00025385,2]
[328455389,1717411857691,-551.94,0.00025385,2]
[328455390,1717411857700,-500.0,0.00025385,2]
[328455391,1717411857710,-719.18,0.00025385,2]
[328455392,1717411857719,-1091.88,0.00025385,2]
[328455393,1717411857728,-3293.93,0.00025385,2]
[328455394,1717411857737,-282.73572654,0.00025385,2]
[328455395,1717411857746,-2227.33,0.00025385,2]
[328455396,1717411857755,-765.8,0.00025385,2]
[328455397,1717411857764,-537.67,0.00025385,2]
[328455398,1717411857774,-757.48331103,0.00025479,2]
[328455399,1717411857783,-2250.3224414,0.00025479,2]
[328455400,1717411857793,-927.62131941,0.00025479,2]
[328455401,1717411857802,-669.56831553,0.00025479,2]
[328455402,1717411857811,-605.17493691,0.00025479,2]
[328455403,1717411857820,-498.0,0.00025593,2]
[328455404,1717411857830,-396.9906054,0.00025655,2]
[328455405,1717411857839,-1057.05,0.00025655,2]
[328455406,1717411857848,-1300.95,0.00025655,2]
[328455407,1717411857857,-501.5,0.00025655,2]
[328455408,1717411857867,-500.0,0.00025655,2]
[328455409,1717411857876,-514.29,0.00025655,2]
[328455410,1717411857886,-1456.38,0.00025655,2]
[328455411,1717411857895,-1362.24,0.00025655,2]
[328455412,1717411857905,-506.18,0.00025655,2]
[328455413,1717411857914,-889.13,0.00025659,2]
[328455414,1717411857923,-663.62,0.00025659,2]
[328455415,1717411857934,-505.95,0.00025659,2]
[328455416,1717411857944,-551.94,0.00025659,2]
[328455417,1717411857953,-449.61266825,0.00025659,2]
[328455418,1717411857963,-719.18,0.00025659,2]
[328455419,1717411857973,-1091.88,0.00025659,2]
[328455420,1717411857983,-3293.93,0.00025659,2]
[328455421,1717411857993,-2227.33,0.00025659,2]
[328455422,1717411858004,-765.8,0.00025659,2]
[328455423,1717411858013,-537.67,0.00025659,2]
[328455424,1717411858023,-179.8,0.0002568,7]
[328455425,1717411858034,-151.0,0.0002568,7]
[328455426,1717411858044,-5698.93881595,0.000258,2]
[328455427,1717411858057,-5698.93881593,0.000258,2]
[328455428,1717411858067,-5698.93881593,0.000258,2]
[328455429,1717411858076,-5698.93881593,0.000258,2]
[328455430,1717411858086,-5698.93881593,0.000258,2]
[328455431,1717411858096,-5698.93881593,0.000258,2]
[328455432,1717411858106,-5698.93881593,0.000258,2]
[328455433,1717411858115,-5698.93881593,0.000258,2]
[328455434,1717411858126,-5698.93881593,0.000258,2]
[328455435,1717411858135,-5698.93881593,0.000258,2]
[328455436,1717411858144,-491.81725523,0.000258,2]
[328455437,1717411858154,-491.81725523,0.000258,2]
[328455438,1717411858163,-491.81725523,0.000258,2]
[328455439,1717411858172,-491.81725523,0.000258,2]
[328455440,1717411858180,-491.81725523,0.000258,2]
[328455441,1717411858195,-491.81725523,0.000258,2]
[328455442,1717411858205,-491.81725523,0.000258,2]
[328455443,1717411858215,-491.81725523,0.000258,2]
[328455444,1717411858224,-491.81725523,0.000258,2]
[328455445,1717411858235,-491.81725523,0.000258,2]
[328455446,1717411858246,-26351.42040983,0.00025854,2]
[328455447,1717411858257,-1057.25201844,0.00025929,2]
[328455448,1717411858267,-1301.00650366,0.00025929,2]
[328455449,1717411858277,-501.51910394,0.00025929,2]
[328455450,1717411858288,-328.2088929,0.00025929,2]
[328455451,1717411858298,-514.30455976,0.00025929,2]
[328455452,1717411858309,-1456.477837,0.00025929,2]
[328455453,1717411858319,-1362.36499798,0.00025929,2]
[328455454,1717411858329,-506.25593715,0.00025929,2]
[328455455,1717411858339,-889.20543364,0.00025933,2]
[328455456,1717411858349,-663.77346726,0.00025933,2]
[328455457,1717411858360,-506.12684533,0.00025933,2]
[328455458,1717411858370,-551.96770509,0.00025933,2]
[328455459,1717411858379,-719.22906026,0.00025933,2]
[328455460,1717411858388,-1091.8852096,0.00025933,2]
[328455461,1717411858398,-3294.08763154,0.00025933,2]
[328455462,1717411858408,-2227.47995531,0.00025933,2]
[328455463,1717411858419,-765.89239634,0.00025933,2]
[328455464,1717411858428,-537.71065906,0.00025933,2]
[328455465,1717411858440,-154.98450155,0.00026,2]
[328455466,1717411858449,-1060.4096,0.00026,2]
[328455467,1717411858459,-2007.407012,0.00026,2]
[328455468,1717411858468,-166.666666,0.00026,2]
[328455469,1717411858478,-150000.0,0.0002617,8]
[328455470,1717411858487,-155.22254967,0.00026195,2]
[328455471,1717411858497,-2410723.30517138,0.00026197,30]
[328455472,1717411858507,-179.8,0.0002628,7]
[328455473,1717411858516,-151.0,0.0002628,7]
[328455474,1717411858525,-155.17308039,0.00026328,2]
[328455475,1717411858535,-1952.72406085,0.00026341,2]
[328455476,1717411858544,-3000.0,0.000265,2]
[328455477,1717411858554,-3000.0,0.0002651,2]
[328455478,1717411858563,-3000.0,0.0002652,2]
[328455479,1717411858573,-3000.0,0.0002653,2]
[328455480,1717411858583,-3000.0,0.0002654,2]
[328455481,1717411858592,-3000.0,0.0002655,2]
[328455482,1717411858602,-3000.0,0.0002656,2]
[328455483,1717411858612,-3000.0,0.0002657,2]
[328455484,1717411858622,-3000.0,0.0002658,2]
[328455485,1717411858631,-3000.0,0.0002659,2]
[328455486,1717411858641,-2048.77560674,0.000266,2]
[328455487,1717411858650,-3000.0,0.000266,2]
[328455488,1717411858659,-2189.43,0.000266,3]
[328455489,1717411858669,-2189.43,0.000266,3]
[328455490,1717411858678,-2189.43,0.000266,3]
[328455491,1717411858690,-2189.43,0.000266,3]
[328455492,1717411858700,-2189.43,0.000266,3]
[328455493,1717411858709,-2189.43,0.000266,3]
[328455494,1717411858719,-2189.43,0.000266,3]
[328455495,1717411858729,-2189.43,0.000266,3]
[328455496,1717411858738,-2189.43,0.000266,3]
[328455497,1717411858748,-2189.43,0.000266,3]
[328455498,1717411858758,-2189.43,0.000266,3]
[328455499,1717411858767,-2189.43,0.000266,3]
[328455500,1717411858777,-2189.43,0.000266,3]
[328455501,1717411858787,-2189.43,0.000266,3]
[328455502,1717411858797,-2189.43,0.000266,3]
[328455503,1717411858806,-2189.43,0.000266,3]
[328455504,1717411858815,-2189.43,0.000266,3]
[328455505,1717411858825,-2189.43,0.000266,3]
[328455506,1717411858835,-2189.43,0.000266,3]
[328455507,1717411858844,-2189.43,0.000266,3]
[328455508,1717411858853,-3000.0,0.0002661,2]
[328455509,1717411858862,-3000.0,0.0002662,2]
[328455510,1717411858872,-3000.0,0.0002663,2]
[328455511,1717411858882,-3000.0,0.0002664,2]
[328455512,1717411858891,-3000.0,0.0002665,2]
[328455513,1717411858900,-3000.0,0.0002666,2]
[328455514,1717411858909,-3000.0,0.0002667,2]
[328455515,1717411858918,-3000.0,0.0002668,2]
[328455516,1717411858927,-3000.0,0.0002669,2]
[328455517,1717411858940,-3000.0,0.000267,2]
[328455518,1717411858949,-3000.0,0.0002671,2]
[328455519,1717411858959,-3000.0,0.0002672,2]
[328455520,1717411858969,-3000.0,0.0002673,2]
[328455521,1717411858978,-3000.0,0.0002674,2]
[328455522,1717411858988,-3000.0,0.0002675,2]
[328455523,1717411858997,-3000.0,0.0002676,2]
[328455524,1717411859007,-3000.0,0.0002677,2]
[328455525,1717411859017,-3000.0,0.0002678,2]
[328455526,1717411859026,-3000.0,0.0002679,2]
[328455527,1717411859036,-200222.31148633,0.000268,2]
[328455528,1717411859051,-3000.0,0.000268,2]
[328455529,1717411859062,-3000.0,0.0002681,2]
[328455530,1717411859072,-3000.0,0.0002682,2]
[328455531,1717411859083,-3000.0,0.0002683,2]
[328455532,1717411859092,-3000.0,0.0002684,2]
[328455533,1717411859102,-750.0,0.00026849,2]
[328455534,1717411859112,-3000.0,0.0002685,2]
[328455535,1717411859124,-3000.0,0.0002686,2]
[328455536,1717411859133,-1336.04647518,0.0002687,2]
[328455537,1717411859231,-1663.95352482,0.0002687,2]
[328455538,1717411859241,-3000.0,0.0002688,2]
[328455539,1717411859252,-179.8,0.0002688,7]
[328455540,1717411859262,-151.0,0.0002688,7]
[328455541,1717411859273,-5072.850126,0.0002689,2]
[328455542,1717411859283,-13489.17170832,0.00026896,30]
[328455543,1717411859293,-13489.17170832,0.00026896,30]
[328455544,1717411859302,-6408.38033028,0.000269,2]
[328455545,1717411859314,-3859.08315979,0.000269,2]
[328455546,1717411859326,-30986.26564328,0.000269,2]
[328455547,1717411859338,-3561.33058698,0.000269,2]
[328455548,1717411859350,-5184.94027967,0.000269,2]
[328455549,1717411859360,-881.05972041,0.000269,14]
[328455550,1717411859579,-291.9275846,0.00021178,2]
[328455551,1717411859589,-500.0,0.00022641,2]
[328455552,1717411859599,-500.0,0.00022915,2]
[328455553,1717411859609,-582.98,0.00022919,2]
[328455554,1717411859620,-500.0,0.00023189,2]
[328455555,1717411859630,-582.98,0.00023193,2]
[328455556,1717411859641,-500.0,0.00023463,2]
[328455557,1717411859651,-582.98,0.00023467,2]
[328455558,1717411859661,-500.0,0.00023737,2]
[328455559,1717411859670,-582.98,0.00023741,2]
[328455560,1717411859682,-500.0,0.00024011,2]
[328455561,1717411859693,-582.98,0.00024015,2]
[328455562,1717411859702,-500.0,0.00024285,2]
[328455563,1717411859712,-582.98,0.00024289,2]
[328455564,1717411859722,-266.160607,0.00024658,2]
[328455565,1717411859732,-1389.42900456,0.000269,14]
[328455567,1717411859871,-9108.94545901,0.000269,14]
[328455568,1717411859881,-13489.17170832,0.00026908,30]
[328455569,1717411859891,-13489.17170832,0.00026918,30]
[328455570,1717411859901,-13489.17170832,0.00026961,30]
[328455571,1717411859910,-13489.17170832,0.00026966,30]
[328455572,1717411859920,-13489.17170832,0.00026972,30]
[328455573,1717411859930,-160.02117963,0.00027058,2]
[328455574,1717411859941,-1960.91385379,0.00027086,2]
[328455575,1717411859950,-172.32895677,0.00027142,2]
[328455576,1717411859959,-153.74860022,0.00027152,2]
[328455577,1717411859969,-1100.53875064,0.00027197,2]
[328455578,1717411859978,-1960.91385379,0.00027201,2]
[328455579,1717411859987,-1100.53875064,0.00027218,2]
[328455580,1717411859996,-398.91580339,0.00027235,2]
[328455622,1717412517685,296.53915524,0.00019072,2]
[328455623,1717412651791,9703.46084476,0.00018175,2]
[328455628,1717412902113,503.00259497,0.00018069,2]
[328455687,1717413032930,-848.37,0.00018163,2]
[328455689,1717413032942,-545.87563572,0.00018163,2]
[328455691,1717413032954,-726.27965151,0.00018163,2]
[328455694,1717413032968,-49061.14117317,0.00018163,2]
[328456169,1717413040375,-8672.95239,0.00018163,2]
[328456172,1717413040388,-6819.42862503,0.00018163,2]
[328456206,1717413042425,-403.49984958,0.00018162,2]
[328456207,1717413042437,-7693.0353284,0.00018162,2]
[328456208,1717413042449,-25375.23883222,0.00018162,2]
[328456233,1717413043986,-16770.85318416,0.00018162,2]
[328456234,1717413043996,-13325.95252457,0.00018163,2]
[328456235,1717413044005,-734.94,0.00018165,2]
[328456236,1717413044014,-9807.1028616,0.00018175,2]
[328456237,1717413044223,-5389.43629364,0.00018175,2]
[328456238,1717413044232,-150.0,0.000189,2]
[328456239,1717413044242,-266.05783264,0.00019177,2]
[328456240,1717413044251,-7251.61093568,0.00019177,2]
[328456241,1717413044260,-500.0,0.00019178,2]
[328456242,1717413044269,-500.0,0.00019178,2]
[328456243,1717413044279,-500.0,0.00019178,2]
[328456244,1717413044288,-500.0,0.00019178,2]
[328456245,1717413044297,-500.0,0.00019178,2]
[328456246,1717413044306,-500.0,0.00019178,2]
[328456247,1717413044316,-500.0,0.00019178,2]
[328456248,1717413044325,-415.3407701,0.00019178,2]
[328456249,1717413044334,-529.57807729,0.00019178,2]
[328456250,1717413044343,-508.32321034,0.00019178,2]
[328456251,1717413044352,-500.0,0.00019178,2]
[328456252,1717413044361,-500.0,0.00019178,2]
[328456253,1717413044370,-500.0,0.00019178,2]
[328456254,1717413044380,-504.91861196,0.00019178,2]
[328456255,1717413044389,-500.0,0.00019178,2]
[328456256,1717413044403,-500.0,0.00019178,2]
[328456257,1717413044412,-394.67543924,0.00019178,2]
[328456258,1717413044421,-500.0,0.00019178,2]
[328456259,1717413044430,-500.0,0.00019178,2]
[328456260,1717413044441,-500.0,0.00019178,2]
[328456261,1717413044450,-500.0,0.00019178,2]
[328456262,1717413044459,-500.0,0.00019178,2]
[328456263,1717413044471,-607.91,0.00019178,2]
[328456264,1717413044480,-598.95,0.00019178,2]
[328456265,1717413044489,-500.0,0.00019178,2]
[328456266,1717413044498,-642.44,0.00019178,2]
[328456267,1717413044507,-504.71785142,0.00019178,2]
[328456268,1717413044516,-573.81515532,0.00019178,2]
[328456269,1717413044526,-500.0,0.00019178,2]
[328456270,1717413044535,-514.31877267,0.00019178,2]
[328456271,1717413044545,-500.0,0.00019178,2]
[328456272,1717413044554,-516.17389832,0.00019178,2]
[328456273,1717413044563,-636.66,0.00019178,2]
[328456274,1717413044573,-500.0,0.00019178,2]
[328456275,1717413044582,-500.0,0.00019178,2]
[328456276,1717413044591,-500.0,0.00019178,2]
[328456277,1717413044601,-500.0,0.00019178,2]
[328456278,1717413044610,-500.0,0.00019178,2]
[328456279,1717413044619,-500.0,0.00019178,2]
[328456280,1717413044628,-500.0,0.00019178,2]
[328456281,1717413044638,-500.0,0.00019178,2]
[328456282,1717413044647,-500.0,0.00019178,2]
[328456283,1717413044656,-395.59441128,0.00019178,2]
[328456284,1717413044665,-500.0,0.00019178,2]
[328456285,1717413044674,-361.89572443,0.00019178,2]
[328456286,1717413044683,-511.05,0.00019178,2]
[328456287,1717413044692,-500.0,0.00019178,2]
[328456288,1717413044701,-506.64846558,0.00019178,2]
[328456289,1717413044711,-500.0,0.00019178,2]
[328456290,1717413044720,-565.44,0.00019178,2]
[328456291,1717413044729,-606.13,0.00019178,2]
[328456292,1717413044739,-500.0,0.00019178,2]
[328456293,1717413044748,-501.33708664,0.00019178,2]
[328456294,1717413044758,-515.20129493,0.00019178,2]
[328456295,1717413044768,-562.89824687,0.00019178,2]
[328456296,1717413044777,-500.0,0.00019178,2]
[328456297,1717413044786,-500.0,0.00019178,2]
[328456298,1717413044796,-504.42089263,0.00019178,2]
[328456299,1717413044805,-500.0,0.00019178,2]
[328456300,1717413044815,-164.05888964,0.00019178,2]
[328456301,1717413044824,-500.0,0.00019178,2]
[328456302,1717413044833,-500.0,0.00019178,2]
[328456303,1717413044843,-255.36538957,0.00019178,2]
[328456304,1717413044852,-500.0,0.00019178,2]
[328456305,1717413044861,-500.33199709,0.00019178,2]
[328456306,1717413044870,-503.12189846,0.00019178,2]
[328456307,1717413044879,-501.89449844,0.00019178,2]
[328456308,1717413044889,-502.37199684,0.00019178,2]
[328456309,1717413044898,-157.2095159,0.00019178,2]
[328456310,1717413044907,-500.0,0.00019178,2]
[328456311,1717413044917,-500.0,0.00019178,2]
[328456312,1717413044926,-500.0,0.00019178,2]
[328456313,1717413044935,-366.06557086,0.00019178,2]
[328456314,1717413044944,-500.0,0.00019178,2]
[328456315,1717413044955,-500.0,0.00019178,2]
[328456316,1717413044964,-462.93403621,0.00019178,2]
[328456317,1717413044973,-500.0,0.00019178,2]
[328456318,1717413044982,-500.0,0.00019178,2]
[328456319,1717413044992,-297.6155465,0.00019178,2]
[328456320,1717413045001,-500.0,0.00019178,2]
[328456321,1717413045010,-500.0,0.00019178,2]
[328456322,1717413045019,-500.0,0.00019178,2]
[328456323,1717413045029,-500.0,0.00019178,2]
[328456324,1717413045038,-500.0,0.00019178,2]
[328456325,1717413045048,-191.65621422,0.00019178,2]
[328456326,1717413045057,-500.0,0.00019178,2]
[328456327,1717413045066,-500.0,0.00019178,2]
[328456328,1717413045076,-194.70944825,0.00019178,2]
[328456329,1717413045086,-500.0,0.00019178,2]
[328456330,1717413045095,-500.0,0.00019178,2]
[328456331,1717413045105,-473.71427363,0.00019178,2]
[328456332,1717413045115,-500.0,0.00019178,2]
[328456333,1717413045124,-500.0,0.00019178,2]
[328456334,1717413045133,-500.0,0.00019178,2]
[328456335,1717413045142,-500.0,0.00019178,2]
[328456336,1717413045151,-500.0,0.00019178,2]
[328456337,1717413045160,-500.0,0.00019178,2]
[328456338,1717413045169,-500.0,0.00019178,2]
[328456339,1717413045178,-500.0,0.00019178,2]
[328456340,1717413045187,-500.0,0.00019178,2]
[328456341,1717413045196,-500.0,0.00019178,2]
[328456342,1717413045205,-501.95079082,0.00019178,2]
[328456343,1717413045215,-500.0,0.00019178,2]
[328456344,1717413045224,-500.0,0.00019178,2]
[328456345,1717413045234,-500.0,0.00019178,2]
[328456346,1717413045243,-500.0,0.00019178,2]
[328456347,1717413045253,-500.0,0.00019178,2]
[328456348,1717413045262,-500.0,0.00019178,2]
[328456349,1717413045271,-500.0,0.00019178,2]
[328456350,1717413045281,-500.0,0.00019178,2]
[328456351,1717413045290,-500.0,0.00019178,2]
[328456352,1717413045299,-513.77,0.00019178,2]
[328456353,1717413045308,-500.0,0.00019178,2]
[328456354,1717413045317,-500.0,0.00019178,2]
[328456355,1717413045326,-634.59,0.00019178,2]
[328456356,1717413045335,-500.0,0.00019178,2]
[328456357,1717413045344,-500.0,0.00019178,2]
[328456358,1717413045355,-500.0,0.00019178,2]
[328456359,1717413045364,-500.0,0.00019178,2]
[328456360,1717413045373,-174.6205898,0.00019178,2]
[328456361,1717413045382,-500.0,0.00019178,2]
[328456362,1717413045397,-500.0,0.00019178,2]
[328456363,1717413045407,-635.05,0.00019178,2]
[328456364,1717413045416,-500.0,0.00019178,2]
[328456365,1717413045426,-500.0,0.00019178,2]
[328456366,1717413045438,-500.0,0.00019178,2]
[328456367,1717413045448,-500.0,0.00019178,2]
[328456368,1717413045458,-500.0,0.00019178,2]
[328456369,1717413045469,-500.0,0.00019178,2]
[328456370,1717413045478,-500.0,0.00019178,2]
[328456371,1717413045488,-207.95745383,0.00019178,2]
[328456372,1717413045497,-500.0,0.00019178,2]
[328456373,1717413045505,-635.19,0.00019178,2]
[328456374,1717413045514,-500.0,0.00019178,2]
[328456375,1717413045524,-500.0,0.00019178,2]
[328456376,1717413045533,-576.87,0.00019178,2]
[328456377,1717413045542,-601.58,0.00019178,2]
[328456378,1717413045551,-500.0,0.00019178,2]
[328456379,1717413045560,-500.0,0.00019178,2]
[328456380,1717413045569,-500.0,0.00019178,2]
[328456381,1717413045578,-500.0,0.00019178,2]
[328456382,1717413045587,-500.0,0.00019178,2]
[328456383,1717413045596,-500.0,0.00019178,2]
[328456384,1717413045607,-500.0,0.00019178,2]
[328456385,1717413045616,-523.95,0.00019178,2]
[328456386,1717413045625,-500.0,0.00019178,2]
[328456387,1717413045634,-500.0,0.00019178,2]
[328456388,1717413045643,-500.0,0.00019178,2]
[328456389,1717413045653,-500.0,0.00019178,2]
[328456390,1717413045661,-196.57574031,0.00019178,2]
[328456391,1717413045670,-502.64996048,0.00019178,2]
[328456392,1717413045679,-500.0,0.00019178,2]
[328456393,1717413045687,-500.0,0.00019178,2]
[328456394,1717413045696,-502.29233727,0.00019178,2]
[328456395,1717413045706,-500.0,0.00019178,2]
[328456396,1717413045715,-409.09310635,0.00019178,2]
[328456397,1717413045724,-501.39085525,0.00019178,2]
[328456398,1717413045733,-503.62033285,0.00019178,2]
[328456399,1717413045742,-502.21887541,0.00019178,2]
[328456400,1717413045751,-503.21527785,0.00019178,2]
[328456401,1717413045760,-500.0,0.00019178,2]
[328456402,1717413045770,-502.47727258,0.00019178,2]
[328456403,1717413045779,-429.59078279,0.00019178,2]
[328456404,1717413045788,-500.0,0.00019178,2]
[328456405,1717413045797,-501.86328713,0.00019178,2]
[328456406,1717413045806,-500.0,0.00019178,2]
[328456407,1717413045815,-500.0,0.00019178,2]
[328456408,1717413045824,-500.99917765,0.00019178,2]
[328456409,1717413045833,-501.36771685,0.00019178,2]
[328456410,1717413045979,-501.27896139,0.00019178,2]
[328456411,1717413045989,-619.49,0.00019178,2]
[328456412,1717413045999,-401.28523431,0.00019178,2]
[328456413,1717413046008,-500.0,0.00019178,2]
[328456414,1717413046018,-500.0,0.00019178,2]
[328456415,1717413046027,-503.06258305,0.00019178,2]
[328456416,1717413046036,-500.0,0.00019178,2]
[328456417,1717413046046,-500.0,0.00019178,2]
[328456418,1717413046056,-500.0,0.00019178,2]
[328456419,1717413046066,-500.0,0.00019178,2]
[328456420,1717413046075,-500.0,0.00019178,2]
[328456421,1717413046085,-500.0,0.00019178,2]
[328456422,1717413046094,-500.0,0.00019178,2]
[328456423,1717413046103,-380.09734761,0.00019178,2]
[328456424,1717413046113,-500.0,0.00019178,2]
[328456425,1717413046122,-500.0,0.00019178,2]
[328456426,1717413046131,-500.0,0.00019178,2]
[328456427,1717413046139,-502.40401202,0.00019178,2]
[328456428,1717413046148,-500.0,0.00019178,2]
[328456429,1717413046157,-500.0,0.00019178,2]
[328456430,1717413046166,-501.42977939,0.00019178,2]
[328456431,1717413046175,-500.0,0.00019178,2]
[328456432,1717413046184,-589.71901571,0.00019178,2]
[328456433,1717413046193,-316.03613428,0.00019178,2]
[328456434,1717413046203,-500.0,0.00019178,2]
[328456435,1717413046213,-500.0,0.00019178,2]
[328456436,1717413046222,-504.96090253,0.00019178,2]
[328456437,1717413046231,-500.23879961,0.00019178,2]
[328456438,1717413046240,-1000.0,0.00019178,2]
[328456439,1717413046249,-523.37022865,0.00019178,2]
[328456440,1717413046258,-501.86278384,0.00019178,2]
[328456441,1717413046267,-500.0,0.00019178,2]
[328456442,1717413046276,-500.0,0.00019178,2]
[328456443,1717413046284,-500.0,0.00019178,2]
[328456444,1717413046293,-500.0,0.00019178,2]
[328456445,1717413046303,-500.0,0.00019178,2]
[328456446,1717413046311,-410.41694782,0.00019178,2]
[328456447,1717413046320,-518.79959173,0.00019178,2]
[328456448,1717413046329,-500.0,0.00019178,2]
[328456454,1717413046337,-500.0,0.00019178,2]
[328456457,1717413046346,-500.0,0.00019178,2]
[328456458,1717413046355,-500.0,0.00019178,2]
[328456460,1717413046364,-507.47828853,0.00019178,2]
[328456462,1717413046373,-500.0,0.00019178,2]
[328456463,1717413046382,-500.0,0.00019178,2]
[328456464,1717413046390,-253.86330479,0.00019178,2]
[328456465,1717413046404,-500.0,0.00019178,2]
[328456466,1717413046412,-500.0,0.00019178,2]
[328456467,1717413046421,-344.91788166,0.00019178,2]
[328456468,1717413046430,-500.0,0.00019178,2]
[328456469,1717413046439,-500.0,0.00019178,2]
[328456470,1717413046448,-500.0,0.00019178,2]
[328456471,1717413046457,-500.0,0.00019178,2]
[328456472,1717413046467,-500.0,0.00019178,2]
[328456473,1717413046478,-256.76552277,0.00019178,2]
[328456474,1717413046486,-500.0,0.00019178,2]
[328456475,1717413046495,-605.1,0.00019178,2]
[328456476,1717413046505,-501.23250287,0.00019178,2]
[328456477,1717413046514,-500.0,0.00019178,2]
[328456478,1717413046523,-223.40910143,0.00019178,2]
[328456479,1717413046531,-507.42993186,0.00019178,2]
[328456480,1717413046540,-500.0,0.00019178,2]
[328456481,1717413046549,-635.13,0.00019178,2]
[328456482,1717413046558,-500.0,0.00019178,2]
[328456484,1717413046567,-500.0,0.00019178,2]
[328456485,1717413046576,-395.06421142,0.00019178,2]
[328456486,1717413046584,-500.0,0.00019178,2]
[328456487,1717413046593,-500.0,0.00019178,2]
[328456488,1717413046602,-500.0,0.00019178,2]
[328456489,1717413046611,-500.0,0.00019178,2]
[328456490,1717413046620,-500.0,0.00019178,2]